lending/lending_fUSD_20240622
["ID","MTS","AMOUNT","RATE_DAILY","PERIOD"]
[330176027,1719075194633,-916.82721557,0.00028939,30]
[330176028,1719075194665,-195.61075283,0.00028939,30]
[330176029,1719075194696,-150.73839039,0.00028939,31]
[330176030,1719075194726,-332.57800784,0.00028939,30]
[330176031,1719075194759,-158.14383274,0.00028939,120]
[330176032,1719075194791,-500.0,0.00028939,30]
[330176033,1719075194824,-289.66263863,0.00028939,120]
[330176034,1719075194857,-364.17880991,0.00028939,120]
[330176035,1719075194889,-3094.21073167,0.00028939,120]
[330176036,1719075194921,-257.91578636,0.00028939,30]
[330176037,1719075194954,-288.93615764,0.00028939,120]
[330176038,1719075194986,-843.32656799,0.00028939,30]
[330176039,1719075195018,-192.76334878,0.00028939,30]
[330176040,1719075195053,-458.64842113,0.00028939,120]
[330176041,1719075195085,-696.23724261,0.00028939,30]
[330176042,1719075195117,-1239.24358189,0.00028939,30]
[330176043,1719075195146,-252.48164809,0.00028939,30]
[330176044,1719075195177,-541.781707,0.00028939,120]
[330176045,1719075195206,-153.51825833,0.00028939,30]
[330176046,1719075195235,-2191.12527775,0.00028939,30]
[330176047,1719075195265,-1456.17850301,0.00028939,30]
[330176048,1719075195295,-3176.51580036,0.00028939,30]
[330176049,1719075195325,-1391.60449611,0.00028939,30]
[330176050,1719075195363,-1091.5409477,0.00028939,30]
[330176051,1719075195393,-285.79781781,0.00028939,30]
[330176052,1719075195426,-2073.92845123,0.00028939,30]
[330176053,1719075195461,-266.0,0.00028939,30]
[330176054,1719075195495,-647.48963763,0.00028939,120]
[330176055,1719075195527,-1102.77656569,0.00028939,120]
[330176056,1719075195561,-9682.26864855,0.00028939,10]
[330176057,1719075195595,-1053.59224129,0.00028939,120]
[330176058,1719075195626,-8699.0795,0.00028939,30]
[330176059,1719075195656,-8018.89781729,0.00028939,30]
[330176060,1719075195687,-5788.244085,0.00028939,60]
[330176061,1719075195718,-633.16430771,0.00028939,30]
[330176062,1719075195748,-2501.23683109,0.00028939,32]
[330176063,1719075195782,-3394.10495271,0.00028939,30]
[330176065,1719075195816,-2729.98286699,0.00028939,120]
[330176066,1719075195848,-341.21340972,0.00028939,120]
[330176067,1719075195882,-492.063696,0.00028939,14]
[330176068,1719075195916,-153.902213,0.00028939,30]
[330176069,1719075195948,-153.902213,0.00028939,30]
[330176070,1719075195977,-1000.0,0.00028939,30]
[330176071,1719075196010,-1000.0,0.00028939,30]
[330176072,1719075196040,-1000.0,0.00028939,30]
[330176073,1719075196073,-1000.0,0.00028939,30]
[330176074,1719075196105,-1000.0,0.00028939,30]
[330176075,1719075196135,-1000.0,0.00028939,30]
[330176076,1719075196165,-1000.0,0.00028939,30]
[330176077,1719075196198,-1500.869287,0.00028939,30]
[330176078,1719075197581,-1058.29277758,0.00022989,10]
[330176079,1719075197624,-667.38204253,0.00025,14]
[330176080,1719075197655,-2110.0,0.00025,15]
[330176081,1719075197687,-150.0,0.00025,13]
[330176082,1719075197720,-500.0,0.00025219,30]
[330176083,1719075197750,-500.0,0.00025219,30]
[330176084,1719075197779,-500.0,0.00025219,30]
[330176085,1719075197811,-500.0,0.00025219,30]
[330176086,1719075197842,-500.0,0.00025219,30]
[330176087,1719075197872,-500.0,0.00025219,30]
[330176088,1719075197903,-500.0,0.00025219,30]
[330176089,1719075197933,-394.61176026,0.00025219,30]
[330176090,1719075197968,-2110.0,0.000255,15]
[330176091,1719075197997,-150.0,0.000255,13]
[330176092,1719075198035,-2110.0,0.00026,15]
[330176093,1719075198068,-150.0,0.00026,14]
[330176094,1719075198102,-2110.0,0.000265,15]
[330176095,1719075198134,-150.0,0.000265,14]
[330176096,1719075198164,-6025.23673645,0.000268,10]
[330176097,1719075198196,-1270.66653476,0.000269,30]
[330176098,1719075198228,-155.59487225,0.00027,10]
[330176099,1719075198262,-2110.0,0.00027,15]
[330176100,1719075198292,-150.0,0.00027,15]
[330176101,1719075198324,-377.58324428,0.0002739,20]
[330176102,1719075198354,-292.38106391,0.0002739,25]
[330176103,1719075198390,-6829.09,0.00027393,15]
[330176104,1719075198423,-6829.09,0.00027393,15]
[330176105,1719075198454,-237.75,0.00027397,30]
[330176106,1719075198487,-2000.0,0.00027397,30]
[330176107,1719075198517,-2000.0,0.00027397,30]
[330176108,1719075198552,-2000.0,0.00027397,30]
[330176109,1719075198583,-2000.0,0.00027397,30]
[330176110,1719075198615,-2000.0,0.00027397,30]
[330176111,1719075198644,-2000.0,0.00027397,30]
[330176112,1719075198674,-2000.0,0.00027397,30]
[330176113,1719075198704,-2000.0,0.00027397,30]
[330176114,1719075198734,-2000.0,0.00027397,30]
[330176115,1719075198765,-2000.0,0.00027397,30]
[330176116,1719075198796,-2000.0,0.00027397,30]
[330176117,1719075198826,-2000.0,0.00027397,30]
[330176118,1719075198856,-1570.60967239,0.00027397,30]
[330176119,1719075198888,-264.00893809,0.00027397,60]
[330176120,1719075198920,-3178.28,0.00027397,10]
[330176121,1719075198951,-2110.0,0.000275,15]
[330176122,1719075198984,-150.0,0.000275,16]
[330176123,1719075199017,-237.75,0.00027534,30]
[330176124,1719075199051,-6829.09,0.00027666,15]
[330176125,1719075199084,-6829.09,0.00027666,15]
[330176126,1719075199115,-237.75,0.00027671,30]
[330176127,1719075199147,-240.568146,0.00027671,14]
[330176128,1719075199178,-237.75,0.00027808,30]
[330176129,1719075199209,-6829.09,0.0002794,15]
[330176130,1719075199271,-6829.09,0.0002794,15]
[330176131,1719075199303,-237.75,0.00027945,30]
[330176132,1719075199337,-2110.0,0.00028,15]
[330176133,1719075199370,-150.0,0.00028,16]
[330176134,1719075199403,-237.75,0.00028082,30]
[330176135,1719075199434,-6829.09,0.00028213,15]
[330176136,1719075199466,-6829.09,0.00028213,15]
[330176137,1719075199498,-150.0,0.00028215,120]
[330176138,1719075199529,-237.75,0.00028219,30]
[330176139,1719075199560,-151.52084922,0.00028297,120]
[330176140,1719075199590,-237.75,0.00028356,30]
[330176141,1719075199621,-6829.09,0.00028486,15]
[330176142,1719075199651,-6829.09,0.00028486,15]
[330176143,1719075199681,-237.75,0.00028493,30]
[330176144,1719075199711,-240.568146,0.00028493,14]
[330176145,1719075199747,-2110.0,0.000285,15]
[330176146,1719075199777,-150.0,0.000285,17]
[330176147,1719075199808,-237.75,0.0002863,30]
[330176148,1719075199838,-6829.09,0.00028759,15]
[330176149,1719075199874,-6829.09,0.00028759,15]
[330176150,1719075199904,-237.75,0.00028767,30]
[330176151,1719075199934,-1258.0,0.000289,20]
[330176152,1719075199964,-237.75,0.00028904,30]
[330176153,1719075199996,-2117.62,0.00029,15]
[330176154,1719075200026,-150.0,0.00029,17]
[330176155,1719075200056,-237.75,0.00029041,30]
[330176156,1719075200088,-237.75,0.00029178,30]
[330176157,1719075200121,-237.75,0.00029315,30]
[330176158,1719075200151,-240.568146,0.00029315,14]
[330176159,1719075200183,-237.75,0.00029452,30]
[330176160,1719075200213,-150.0,0.000295,18]
[330176161,1719075200243,-237.75,0.00029589,30]
[330176162,1719075200274,-237.75,0.00029726,30]
[330176163,1719075200307,-1739.429551,0.0002978,10]
[330176164,1719075200339,-1000.0,0.000298,10]
[330176165,1719075200373,-1000.0,0.0002982,10]
[330176166,1719075200403,-1000.0,0.0002984,10]
[330176167,1719075200432,-1000.0,0.0002986,10]
[330176168,1719075200466,-237.75,0.00029863,30]
[330176169,1719075200496,-1000.0,0.0002988,10]
[330176170,1719075200525,-1000.0,0.000299,10]
[330176171,1719075200556,-1000.0,0.0002992,10]
[330176172,1719075200585,-1000.0,0.0002994,10]
[330176173,1719075200624,-1000.0,0.0002996,10]
[330176174,1719075200654,-1000.0,0.0002998,10]
[330176175,1719075200685,-237.75,0.00029999,30]
[330176176,1719075200716,-20052.0,0.0003,10]
[330176177,1719075200747,-200.0,0.0003,12]
[330176178,1719075200777,-1403.97680355,0.0003,60]
[330176179,1719075200806,-1500.0,0.0003,30]
[330176180,1719075200837,-250.0,0.0003,30]
[330176181,1719075200867,-250.0,0.0003,30]
[330176182,1719075200897,-250.0,0.0003,30]
[330176183,1719075200927,-250.0,0.0003,30]
[330176184,1719075200957,-200.0,0.0003,90]
[330176185,1719075200988,-200.966781,0.0003,18]
[330176186,1719075201019,-1000.0,0.0003,11]
[330176187,1719075201050,-237.75,0.00030136,30]
[330176188,1719075201081,-835.72,0.00030136,120]
[330176189,1719075201113,-835.72,0.00030136,120]
[330176190,1719075201144,-835.72,0.00030136,120]
[330176191,1719075201174,-835.72,0.00030136,120]
[330176192,1719075201207,-835.72,0.00030136,120]
[330176193,1719075201242,-835.72,0.00030136,120]
[330176194,1719075201272,-835.72,0.00030136,120]
[330176195,1719075201304,-835.72,0.00030136,120]
[330176196,1719075201335,-835.72,0.00030136,120]
[330176197,1719075201369,-835.72,0.00030136,120]
[330176198,1719075201400,-835.72,0.00030136,120]
[330176199,1719075201431,-835.72,0.00030136,120]
[330176200,1719075201466,-835.72,0.00030136,120]
[330176201,1719075201496,-835.72,0.00030136,120]
[330176202,1719075201526,-835.72,0.00030136,120]
[330176203,1719075201556,-835.72,0.00030136,120]
[330176204,1719075201587,-835.72,0.00030136,120]
[330176205,1719075201618,-835.72,0.00030136,120]
[330176206,1719075201648,-835.72,0.00030136,120]
[330176207,1719075201680,-835.72,0.00030136,120]
[330176208,1719075201709,-835.72,0.00030136,120]
[330176209,1719075201738,-835.72,0.00030136,120]
[330176210,1719075201768,-835.72,0.00030136,120]
[330176211,1719075201797,-835.82418863,0.00030136,120]
[330176212,1719075201827,-200.0,0.00030137,60]
[330176213,1719075201857,-240.568146,0.00030137,14]
[330176214,1719075201886,-237.75,0.00030273,30]
[330176215,1719075201916,-237.75,0.0003041,30]
[330176216,1719075201951,-237.87570511,0.00030547,30]
[330176217,1719075201985,-250.0,0.000308,30]
[330176218,1719075202017,-240.568146,0.00030959,14]
[330176219,1719075202048,-500.0,0.00031,120]
[330176220,1719075202081,-150.0,0.00031156,120]
[330176221,1719075202116,-159.69,0.00031178,120]
[330176222,1719075202149,-195.28,0.00031415,120]
[330176223,1719075202180,-1208.0,0.00031591,30]
[330176224,1719075202212,-240.568146,0.00031781,14]
[330176225,1719075202242,-2500.98,0.000318,28]
[330176226,1719075202273,-338.9383009,0.00032,14]
[330176227,1719075202303,-500.0,0.00032,120]
[330176228,1719075202334,-150.0,0.00032017,120]
[330176229,1719075202369,-150.0,0.00032391,120]
[330176230,1719075202398,-261.35031852,0.00032393,40]
[330176231,1719075202429,-152.0,0.00032597,10]
[330176232,1719075202465,-240.568146,0.00032603,14]
[330176233,1719075202496,-150.0,0.0003283,15]
[330176234,1719075202527,-486.8879635,0.00032876,30]
[330176235,1719075202675,-200.0,0.00032877,60]
[330176236,1719075202708,-161.97766407,0.00033,30]
[330176237,1719075202738,-159.09153235,0.00033,120]
[330176238,1719075202768,-500.0,0.00033,120]
[330176239,1719075202799,-286.68,0.00033151,120]
[330176240,1719075202829,-172.98,0.00033151,120]
[330176241,1719075202861,-150.0,0.00033249,120]
[330176242,1719075202892,-152.0,0.00033368,11]
[330176243,1719075202922,-240.568146,0.00033425,14]
[330176244,1719075202953,-150.0,0.00033445,120]
[330176245,1719075202984,-157.63,0.000335,31]
[330176246,1719075203016,-157.63,0.000335,31]
[330176247,1719075203051,-150.0,0.0003365,120]
[330176248,1719075203084,-390.65314671,0.00034,12]
[330176249,1719075203117,-884.46068824,0.00034,120]
[330176250,1719075203154,-500.0,0.00034,120]
[330176251,1719075203185,-152.0,0.00034138,12]
[330176252,1719075203217,-152.0,0.0003452,15]
[330176253,1719075203247,-150.0,0.00034548,10]
[330176254,1719075203280,-152.0,0.00034909,13]
[330176255,1719075203311,-1246.476516,0.0003494,14]
[330176256,1719075203349,-1000.0,0.0003496,14]
[330176257,1719075203385,-1000.0,0.0003498,14]
[330176258,1719075203417,-1000.0,0.00035,10]
[330176259,1719075203450,-217.95124268,0.00035,120]
[330176260,1719075203482,-493.98391854,0.00035,30]
[330176261,1719075203513,-2668.94610302,0.00035,30]
[330176262,1719075203547,-250.0,0.00035,30]
[330176263,1719075203583,-500.0,0.00035,120]
[330176264,1719075203620,-200.0,0.00035,120]
[330176265,1719075203652,-1000.0,0.00035,14]
[330176266,1719075203683,-30000.0,0.00035,35]
[330176267,1719075203718,-152.0,0.00035013,15]
[330176268,1719075203754,-150.0,0.00035288,120]
[330176269,1719075203789,-150.0,0.00035373,120]
[330176270,1719075203824,-216.45938228,0.0003549,10]
[330176271,1719075203861,-152.0,0.00035506,15]
[330176272,1719075203896,-1099.44,0.00035616,90]
[330176273,1719075203933,-1099.44,0.00035616,90]
[330176274,1719075203968,-1099.44,0.00035616,90]
[330176275,1719075204000,-1099.44,0.00035616,90]
[330176276,1719075204032,-1099.44,0.00035616,90]
[330176277,1719075204066,-1099.44,0.00035616,90]
[330176278,1719075204102,-1099.44,0.00035616,90]
[330176279,1719075204138,-1099.44,0.00035616,90]
[330176280,1719075204171,-1099.44,0.00035616,90]
[330176281,1719075204203,-1099.44,0.00035616,90]
[330176282,1719075204240,-1099.44,0.00035616,90]
[330176283,1719075204271,-1099.44,0.00035616,90]
[330176284,1719075204301,-1099.44,0.00035616,90]
[330176285,1719075204332,-1099.44,0.00035616,90]
[330176286,1719075204369,-1099.44,0.00035616,90]
[330176287,1719075204400,-1099.44,0.00035616,90]
[330176288,1719075204438,-1099.44,0.00035616,90]
[330176289,1719075204473,-1099.44,0.00035616,90]
[330176290,1719075204506,-1099.44,0.00035616,90]
[330176291,1719075204538,-1099.44,0.00035616,90]
[330176292,1719075204573,-1099.44,0.00035616,90]
[330176293,1719075204606,-1099.44,0.00035616,90]
[330176294,1719075204639,-1099.44,0.00035616,90]
[330176295,1719075204672,-1099.50943627,0.00035616,90]
[330176296,1719075204703,-200.0,0.00035616,60]
[330176297,1719075204734,-152.0,0.00035679,14]
[330176298,1719075204766,-152.0,0.00035999,15]
[330176299,1719075204797,-500.0,0.00036,120]
[330176300,1719075204829,-150.0,0.00036295,120]
[330176301,1719075204864,-157.63,0.000363,31]
[330176302,1719075204896,-157.63,0.000363,31]
[330176303,1719075204928,-150.0,0.00036384,120]
[330176304,1719075204960,-152.0,0.00036449,15]
[330176305,1719075204992,-152.0,0.00036493,15]
[330176306,1719075205025,-150.0,0.00036891,120]
[330176307,1719075205056,-152.0,0.00036986,15]
[330176308,1719075205088,-500.0,0.00037,120]
[330176309,1719075205119,-152.0,0.0003722,16]
[330176310,1719075205152,-152.0,0.00037479,15]
[330176311,1719075205183,-600.0,0.00037807,10]
[330176312,1719075205217,-2400.0,0.00037807,10]
[330176313,1719075205252,-152.0,0.00037972,15]
[330176314,1719075205284,-152.0,0.0003799,17]
[330176315,1719075205317,-155.0,0.00038,90]
[330176316,1719075205351,-1031.03367882,0.00038,120]
[330176317,1719075205388,-750.0,0.00038,120]
[330176318,1719075205422,-30000.0,0.00038,61]
[330176319,1719075205456,-166.58939204,0.00038,30]
[330176320,1719075205487,-600.0,0.00038355,10]
[330176321,1719075205519,-2400.0,0.00038355,10]
[330176322,1719075205551,-550.0,0.00038356,12]
[330176323,1719075205790,-550.0,0.00038356,22]
[330176324,1719075205824,-351.31951984,0.00038356,32]
[330176325,1719075205860,-500.0,0.00038356,120]
[330176326,1719075205892,-500.0,0.00038356,120]
[330176327,1719075205924,-500.0,0.00038356,120]
[330176328,1719075205955,-500.0,0.00038356,120]
[330176329,1719075205986,-500.0,0.00038356,120]
[330176330,1719075206017,-500.0,0.00038356,120]
[330176331,1719075206050,-500.0,0.00038356,120]
[330176332,1719075206081,-500.0,0.00038356,120]
[330176333,1719075206113,-500.0,0.00038356,120]
[330176334,1719075206149,-500.0,0.00038356,120]
[330176335,1719075206201,-500.0,0.00038356,120]
[330176336,1719075206239,-500.0,0.00038356,120]
[330176337,1719075206277,-500.0,0.00038356,120]
[330176338,1719075206312,-500.0,0.00038356,120]
[330176339,1719075206349,-500.0,0.00038356,120]
[330176340,1719075206387,-500.0,0.00038356,120]
[330176341,1719075206420,-500.0,0.00038356,120]
[330176342,1719075206454,-500.0,0.00038356,120]
[330176343,1719075206486,-414.94712015,0.00038356,120]
[330176344,1719075206520,-200.0,0.00038356,60]
[330176345,1719075206560,-152.0,0.00038465,15]
[330176346,1719075206593,-152.0,0.00038761,18]
[330176347,1719075206626,-600.0,0.00038903,10]
[330176348,1719075206659,-2400.0,0.00038903,10]
[330176349,1719075206692,-152.0,0.00038958,15]
[330176350,1719075206728,-50000.0,0.00039,29]
[330176351,1719075206759,-1389.12362274,0.00039,120]
[330176352,1719075206791,-14227.02361149,0.00039,120]
[330176353,1719075206823,-157.63,0.000391,31]
[330176354,1719075206856,-157.63,0.000391,31]
[330176355,1719075206890,-150.0,0.00039352,120]
[330176356,1719075206923,-600.0,0.00039451,10]
[330176357,1719075206954,-2400.0,0.00039451,10]
[330176358,1719075206986,-152.0,0.00039451,15]
[330176359,1719075207017,-600.0,0.00039451,10]
[330176360,1719075207049,-2000.0,0.00039451,10]
[330176361,1719075207081,-182.63330026,0.000395,30]
[330176362,1719075207114,-152.0,0.00039531,19]
[330176363,1719075207147,-300.0,0.00039752,120]
[330176364,1719075207179,-274.24418937,0.0003985,30]
[330176365,1719075207212,-705789.83317841,0.000399,30]
[330176366,1719075207244,-2937.3055001,0.000399,120]
[330176367,1719075207276,-152.0,0.00039944,15]
[330176368,1719075207309,-250.0,0.00039999,30]
[330176369,1719075207346,-600.0,0.00039999,10]
[330176370,1719075207382,-2000.0,0.00039999,10]
[330176371,1719075207418,-50000.0,0.0004,30]
[330176372,1719075207452,-204.42,0.0004,10]
[330176373,1719075207484,-477.12749073,0.0004,30]
[330176374,1719075207516,-443.06858192,0.0004,30]
[330176375,1719075207550,-410.0,0.0004,30]
[330176376,1719075207583,-345.35787498,0.0004,120]
[330176377,1719075207618,-162.49791812,0.0004,30]
[330176378,1719075207653,-152.9,0.0004,30]
[330176379,1719075207685,-2000.0,0.0004,80]
[330176380,1719075207716,-2000.0,0.0004,80]
[330176381,1719075207751,-2000.0,0.0004,80]
[330176382,1719075207783,-1000.0,0.0004,80]
[330176383,1719075207815,-4210.40388137,0.0004,30]
[330176384,1719075207848,-296.0,0.0004,60]
[330176385,1719075207880,-700.0,0.0004,120]
[330176386,1719075207914,-1500.0,0.0004,30]
[330176387,1719075207947,-290.31429098,0.0004,60]
[330176388,1719075207978,-838.81190806,0.0004,120]
[330176389,1719075208011,-2448.05515907,0.0004,30]
[330176390,1719075208046,-216328.97971999,0.0004,120]
[330176391,1719075208082,-200.0,0.0004,120]
[330176392,1719075208118,-129369.2430989,0.0004,120]
[330176393,1719075208154,-35022.50529197,0.0004,30]
[330176394,1719075208192,-337.42,0.0004,120]
[330176395,1719075208308,-167.64593746,0.00040049,30]
[330176396,1719075208341,-166.62775,0.00040088,30]
[330176397,1719075208375,-459.2876961,0.00040162,30]
[330176398,1719075208409,-155.81513259,0.00040215,30]
[330176399,1719075208444,-153.55871671,0.00040248,30]
[330176400,1719075208475,-154.71187426,0.00040254,30]
[330176401,1719075208505,-166.62775,0.00040288,30]
[330176402,1719075208537,-152.0,0.00040301,20]
[330176403,1719075208568,-153.55871671,0.00040381,30]
[330176404,1719075208599,-152.0,0.00040438,15]
[330176405,1719075208630,-166.62775,0.00040488,30]
[330176406,1719075208660,-154.71187426,0.00040491,30]
[330176407,1719075208691,-600.0,0.00040547,10]
[330176408,1719075208724,-600.0,0.00040547,10]
[330176409,1719075208754,-2000.0,0.00040547,10]
[330176410,1719075208786,-2400.0,0.00040547,10]
[330176411,1719075208819,-150.0,0.00040596,120]
[330176412,1719075208852,-150.0,0.00040658,120]
[330176413,1719075208883,-166.62775,0.00040688,30]
[330176414,1719075208914,-181.28384202,0.00040693,30]
[330176415,1719075208950,-2024.0,0.000407,81]
[330176416,1719075208982,-160.12584752,0.00040706,30]
[330176417,1719075209015,-81951.61466558,0.00040714,14]
[330176418,1719075209047,-166.10326218,0.00040726,30]
[330176419,1719075209079,-1070.656206,0.000408,30]
[330176420,1719075209112,-500.0,0.00040821,10]
[330176421,1719075209145,-571.85365538,0.00040822,13]
[330176422,1719075209179,-152.96157437,0.00040859,30]
[330176423,1719075209214,-733.65478545,0.000409,120]
[330176424,1719075209246,-733.65478537,0.000409,120]
[330176425,1719075209277,-733.65478537,0.000409,120]
[330176426,1719075209310,-733.65478537,0.000409,120]
[330176427,1719075209344,-733.65478537,0.000409,120]
[330176428,1719075209382,-733.65478537,0.000409,120]
[330176429,1719075209413,-733.65478537,0.000409,120]
[330176430,1719075209446,-733.65478537,0.000409,120]
[330176431,1719075209476,-733.65478537,0.000409,120]
[330176432,1719075209508,-733.65478537,0.000409,120]
[330176433,1719075209540,-733.65478537,0.000409,120]
[330176434,1719075209575,-733.65478537,0.000409,120]
[330176435,1719075209607,-733.65478537,0.000409,120]
[330176436,1719075209639,-733.65478537,0.000409,120]
[330176437,1719075209670,-733.65478537,0.000409,120]
[330176438,1719075209701,-733.65478537,0.000409,120]
[330176439,1719075209733,-733.65478537,0.000409,120]
[330176440,1719075209765,-733.65478537,0.000409,120]
[330176441,1719075209795,-152.0,0.00040931,15]
[330176442,1719075209825,-160.76013826,0.00040948,30]
[330176443,1719075209860,-50000.0,0.00041,31]
[330176444,1719075209892,-2528.54256864,0.00041,30]
[330176445,1719075209922,-503.0,0.00041,120]
[330176446,1719075209954,-228.50749117,0.00041,60]
[330176447,1719075209985,-6000.0,0.00041,15]
[330176448,1719075210016,-152.0,0.00041072,21]
[330176449,1719075210048,-166.62775,0.00041088,30]
[330176450,1719075210084,-2000.0,0.00041095,30]
[330176451,1719075210120,-510.0,0.00041095,120]
[330176452,1719075210156,-200.0,0.00041096,60]
[330176453,1719075210193,-150.0,0.00041212,120]
[330176454,1719075210230,-166.62775,0.00041288,30]
[330176455,1719075210265,-154.61983034,0.00041307,30]
[330176456,1719075210297,-510.0,0.00041369,120]
[330176457,1719075210328,-154.71187426,0.00041369,30]
[330176458,1719075210359,-152.0,0.00041424,31]
[330176459,1719075210394,-150.0,0.00041435,120]
[330176460,1719075210426,-166.62775,0.00041488,30]
[330176461,1719075210460,-300.0,0.00041506,120]
[330176462,1719075210491,-160.12584756,0.00041593,30]
[330176463,1719075210529,-150.1,0.000416,45]
[330176464,1719075210565,-2000.0,0.00041643,30]
[330176465,1719075210597,-600.0,0.00041643,30]
[330176466,1719075210628,-600.0,0.00041643,30]
[330176467,1719075210660,-2400.0,0.00041643,30]
[330176468,1719075210691,-510.0,0.00041643,120]
[330176469,1719075210724,-166.62775,0.00041688,30]
[330176470,1719075210759,-459.2876961,0.00041723,30]
[330176471,1719075210790,-459.2876961,0.00041793,30]
[330176472,1719075210824,-346.97399875,0.0004182,120]
[330176473,1719075210855,-152.0,0.00041842,22]
[330176474,1719075210884,-161.07230629,0.000419,120]
[330176475,1719075210917,-510.0,0.00041917,120]
[330176476,1719075210948,-152.0,0.00041917,31]
[330176477,1719075210978,-500.0,0.00041917,30]
[330176478,1719075211014,-50000.0,0.00042,32]
[330176479,1719075211045,-500.0,0.00042,15]
[330176480,1719075211078,-292.1490324,0.00042,120]
[330176481,1719075211109,-3000.9,0.00042,120]
[330176482,1719075211140,-223.896674,0.00042,14]
[330176483,1719075211172,-223.896674,0.00042,14]
[330176484,1719075211210,-151.0,0.00042,14]
[330176485,1719075211244,-151.0,0.00042,14]
[330176486,1719075211276,-157.63,0.00042,31]
[330176487,1719075211308,-157.63,0.00042,31]
[330176488,1719075211338,-336.07134,0.00042,14]
[330176489,1719075211373,-336.07134,0.00042,14]
[330176490,1719075211405,-400.671873,0.00042,14]
[330176491,1719075211436,-400.671873,0.00042,14]
[330176492,1719075211472,-319.635029,0.00042,14]
[330176493,1719075211503,-319.635029,0.00042,14]
[330176494,1719075211533,-154.71187426,0.00042008,30]
[330176495,1719075211565,-154.71187426,0.00042057,30]
[330176496,1719075211596,-154.71187426,0.00042121,30]
[330176497,1719075211626,-165.49788369,0.00042127,30]
[330176498,1719075211657,-2000.0,0.00042191,30]
[330176499,1719075211687,-600.0,0.00042191,30]
[330176500,1719075211828,-600.0,0.00042191,30]
[330176501,1719075211859,-2400.0,0.00042191,30]
[330176502,1719075211890,-212.50217588,0.00042191,120]
[330176503,1719075211922,-459.2876961,0.00042306,30]
[330176504,1719075211957,-150.0,0.00042341,120]
[330176505,1719075211990,-500.0,0.00042465,30]
[330176506,1719075212022,-150.0,0.00042493,120]
[330176507,1719075212054,-152.0,0.00042613,23]
[330176508,1719075212084,-167.64593747,0.00042711,30]
[330176509,1719075212116,-2000.0,0.00042739,30]
[330176510,1719075212146,-600.0,0.00042739,30]
[330176511,1719075212177,-600.0,0.00042739,30]
[330176512,1719075212209,-2400.0,0.00042739,30]
[330176513,1719075212243,-1500.0,0.000428,120]
[330176514,1719075212276,-50000.0,0.0004288,33]
[330176515,1719075212306,-191.5642028,0.0004288,120]
[330176516,1719075212339,-113800.16980013,0.0004288,60]
[330176517,1719075212559,200.0,0.00025982,120]
[330176518,1719075212802,1000.0,0.00025982,120]
[330176519,1719075236212,-200.0,0.00026499,120]
[330176520,1719075236249,-292.3810639,0.0002739,30]
[330176521,1719075236296,-1000.0,0.00027499,120]
[330176522,1719075236354,-679.218512,0.00033,14]
[330176523,1719075236393,-238.9,0.00033151,120]
[330176524,1719075236445,-733.65478537,0.000409,120]
[330176525,1719075236484,-733.65478537,0.000409,120]
[330176526,1719075236520,-202.2102,0.00042,14]
[330176527,1719075236556,-202.2102,0.00042,14]